fUST/lending_fUST_20250206
["ID","MTS","AMOUNT","RATE_DAILY","PERIOD"]
[351769629,1738782641344,-513.03769392,0.00014486,2]
[351769631,1738782641353,-500.0,0.00014486,2]
[351769632,1738782641363,-500.0,0.00014486,2]
[351769635,1738782641372,-500.0,0.00014486,2]
[351769636,1738782641382,-500.0,0.00014486,2]
[351769639,1738782641392,-500.0,0.00014486,2]
[351769641,1738782641401,-500.0,0.00014486,2]
[351769643,1738782641410,-500.0,0.00014486,2]
[351769645,1738782641420,-500.0,0.00014486,2]
[351769647,1738782641429,-501.20315006,0.00014486,2]
[351769649,1738782641438,-500.0,0.00014486,2]
[351769650,1738782641448,-500.0,0.00014486,2]
[351769652,1738782641457,-958.73,0.00014486,2]
[351769655,1738782641467,-500.0,0.00014486,2]
[351769657,1738782641476,-500.0,0.00014486,2]
[351769658,1738782641486,-500.0,0.00014486,2]
[351769661,1738782641495,-500.0,0.00014486,2]
[351769663,1738782641505,-500.0,0.00014486,2]
[351769665,1738782641522,-500.0,0.00014486,2]
[351769667,1738782641531,-500.0,0.00014486,2]
[351769669,1738782641541,-438.22386094,0.00014486,2]
[351769671,1738782641550,-500.0,0.00014486,2]
[351769673,1738782641559,-514.99960741,0.00014486,2]
[351769675,1738782641568,-500.0,0.00014486,2]
[351769676,1738782641578,-500.0,0.00014486,2]
[351769678,1738782641587,-500.0,0.00014486,2]
[351769681,1738782641597,-500.0,0.00014486,2]
[351769682,1738782641606,-500.0,0.00014486,2]
[351769684,1738782641615,-500.0,0.00014486,2]
[351769687,1738782641625,-500.0,0.00014486,2]
[351769688,1738782641635,-977.43,0.00014486,2]
[351769689,1738782641644,-500.0,0.00014486,2]
[351769690,1738782641653,-500.0,0.00014486,2]
[351769691,1738782641662,-1374.79,0.00014486,2]
[351769692,1738782641672,-500.0,0.00014486,2]
[351769693,1738782641681,-500.0,0.00014486,2]
[351769695,1738782641691,-500.0,0.00014486,2]
[351769711,1738782641825,-211.74345682,0.00014486,2]
[351769713,1738782641835,-507.95164527,0.00014486,2]
[351769715,1738782641846,-503.79388325,0.00014486,2]
[351769717,1738782641855,-500.0,0.00014486,2]
[351769719,1738782641864,-500.0,0.00014486,2]
[351769721,1738782641874,-500.0,0.00014486,2]
[351769723,1738782641884,-500.0,0.00014486,2]
[351769725,1738782641893,-500.0,0.00014486,2]
[351769727,1738782641903,-321.82871719,0.00014486,2]
[351769729,1738782641912,-715.54,0.00014486,2]
[351769731,1738782641921,-505.44800151,0.00014486,2]
[351769733,1738782641931,-500.0,0.00014486,2]
[351769735,1738782641942,-500.0,0.00014486,2]
[351769737,1738782641956,-500.0,0.00014486,2]
[351769739,1738782641965,-500.0,0.00014486,2]
[351769741,1738782641974,-500.0,0.00014486,2]
[351769743,1738782641983,-500.0,0.00014486,2]
[351769745,1738782641993,-500.0,0.00014486,2]
[351769747,1738782642002,-500.0,0.00014486,2]
[351769749,1738782642013,-500.0,0.00014486,2]
[351769751,1738782642024,-500.0,0.00014486,2]
[351769753,1738782642033,-500.0,0.00014486,2]
[351769755,1738782642043,-540.91309947,0.00014486,2]
[351769757,1738782642052,-500.0,0.00014486,2]
[351769759,1738782642062,-500.0,0.00014486,2]
[351769761,1738782642072,-500.73042443,0.00014486,2]
[351769763,1738782642081,-530.8,0.00014486,2]
[351769765,1738782642090,-519.1702499,0.00014486,2]
[351769767,1738782642099,-500.0,0.00014486,2]
[351769769,1738782642108,-500.0,0.00014486,2]
[351769771,1738782642117,-500.0,0.00014486,2]
[351769773,1738782642126,-500.0,0.00014486,2]
[351769775,1738782642137,-500.0,0.00014486,2]
[351769777,1738782642147,-571.8211526,0.00014486,2]
[351769779,1738782642157,-504.63537477,0.00014486,2]
[351769781,1738782642166,-502.13000181,0.00014486,2]
[351769783,1738782642175,-500.0,0.00014487,2]
[351769785,1738782642185,-293.3411846,0.00014487,2]
[351769787,1738782642194,-436.66818008,0.00014487,2]
[351769789,1738782642203,-500.0,0.00014487,2]
[351769791,1738782642214,-500.0,0.00014487,2]
[351769793,1738782642223,-206.53333869,0.00014487,2]
[351769795,1738782642233,-500.0,0.00014487,2]
[351769797,1738782642243,-500.0,0.00014487,2]
[351769799,1738782642252,-500.0,0.00014487,2]
[351769801,1738782642263,-500.0,0.00014487,2]
[351769803,1738782642272,-500.0,0.00014487,2]
[351769805,1738782642282,-502.17855827,0.00014487,2]
[351769807,1738782642291,-198.22712103,0.00014487,2]
[351769809,1738782642300,-500.0,0.00014487,2]
[351769811,1738782642310,-500.0,0.00014487,2]
[351769813,1738782642320,-500.0,0.00014487,2]
[351769815,1738782642329,-251.5339451,0.00014487,2]
[351769817,1738782642338,-3850.29,0.00014487,2]
[351769819,1738782642347,-1211.1,0.00014487,2]
[351769821,1738782642357,-505.13970257,0.00014487,2]
[351769823,1738782642366,-930.51541008,0.00014521,2]
[351769825,1738782642376,-194.36447741,0.00014522,2]
[351769827,1738782642385,-194.36447741,0.00014522,2]
[351769829,1738782642395,-194.36,0.00014522,2]
[351769831,1738782642403,-500.0,0.00014523,7]
[351769833,1738782642413,-500.0,0.00014523,7]
[351769835,1738782642422,-500.0,0.00014523,7]
[351769837,1738782642433,-500.0,0.00014523,7]
[351769839,1738782642442,-500.0,0.00014523,7]
[351769841,1738782642452,-500.0,0.00014523,7]
[351769843,1738782642461,-500.0,0.00014523,7]
[351769846,1738782642475,-195.73,0.00014523,7]
[351769848,1738782642484,-500.0,0.00014535,2]
[351769850,1738782642494,-500.0,0.00014536,2]
[351769851,1738782642502,-7820.82,0.00014536,2]
[351769854,1738782642513,-631.88,0.00014536,2]
[351769855,1738782642522,-500.0,0.00014536,2]
[351769857,1738782642531,-559.36,0.00014536,2]
[351769860,1738782642540,-500.0,0.00014536,2]
[351769862,1738782642549,-5368.07,0.00014536,2]
[351769863,1738782642559,-500.0,0.00014536,2]
[351769865,1738782642568,-3030.39,0.00014536,2]
[351769867,1738782642577,-13862.88,0.00014536,2]
[351769869,1738782642588,-2574.47,0.00014536,2]
[351769871,1738782642598,-558.47,0.00014536,2]
[351769874,1738782642607,-1051.25,0.00014536,2]
[351769876,1738782642617,-500.0,0.00014536,2]
[351769878,1738782642626,-5494.71,0.00014536,2]
[351769880,1738782642636,-500.0,0.00014536,2]
[351769882,1738782642645,-768.96,0.00014536,2]
[351769884,1738782642654,-6936.46,0.00014536,2]
[351769886,1738782642664,-1973.67,0.00014536,2]
[351769888,1738782642674,-2795.66,0.00014536,2]
[351769890,1738782642683,-500.0,0.00014536,2]
[351769892,1738782642693,-500.0,0.00014536,2]
[351769894,1738782642702,-7054.0,0.00014536,2]
[351769896,1738782642711,-500.0,0.00014536,2]
[351769898,1738782642721,-1081.49,0.00014536,2]
[351769900,1738782642733,-12159.71,0.00014536,2]
[351769902,1738782642745,-500.0,0.00014536,2]
[351769904,1738782642755,-972.35,0.00014536,2]
[351769906,1738782642765,-500.0,0.00014536,2]
[351769907,1738782642775,-3065.8,0.00014536,2]
[351769909,1738782642784,-580.41,0.00014536,2]
[351769912,1738782642794,-919.05,0.00014536,2]
[351769914,1738782642804,-685.61,0.00014536,2]
[351769916,1738782642813,-500.0,0.00014536,2]
[351769918,1738782642823,-2800.06,0.00014536,2]
[351769920,1738782642835,-680.6,0.0001462,2]
[351769922,1738782642846,-500.0,0.0001462,2]
[351769924,1738782642862,-523.4841126,0.0001462,2]
[351769926,1738782642875,-500.0,0.0001462,2]
[351769930,1738782642894,-498.49666282,0.0001462,2]
[351769933,1738782642904,-500.0,0.0001462,2]
[351769935,1738782642914,-525.1974156,0.0001462,2]
[351769938,1738782642924,-1047.32,0.0001462,2]
[351769939,1738782642933,-500.0,0.0001462,2]
[351769941,1738782642944,-500.0,0.0001462,2]
[351769943,1738782642955,-500.0,0.0001462,2]
[351769946,1738782642965,-500.0,0.0001462,2]
[351769948,1738782642975,-500.0,0.0001462,2]
[351769952,1738782642987,-500.0,0.0001462,2]
[351769954,1738782642997,-2739.3,0.0001462,2]
[351769957,1738782643007,-500.0,0.0001462,2]
[351769959,1738782643023,-500.0,0.0001462,2]
[351769962,1738782643033,-500.0,0.0001462,2]
[351769964,1738782643042,-500.0,0.0001462,2]
[351769966,1738782643053,-500.0,0.0001462,2]
[351769968,1738782643063,-500.0,0.0001462,2]
[351769969,1738782643074,-536.4,0.0001462,2]
[351769972,1738782643085,-608.90386657,0.0001462,2]
[351769974,1738782643095,-500.0,0.0001462,2]
[351769975,1738782643105,-500.0,0.0001462,2]
[351769977,1738782643115,-2050.54,0.0001462,2]
[351769979,1738782643125,-537.73472832,0.0001462,2]
[351769981,1738782643134,-370.22165324,0.0001462,2]
[351769983,1738782643143,-500.0,0.0001462,2]
[351769985,1738782643152,-503.73,0.0001462,2]
[351769987,1738782643161,-500.0,0.0001462,2]
[351769989,1738782643172,-941.85,0.0001462,2]
[351769991,1738782643181,-500.0,0.0001462,2]
[351769993,1738782643191,-500.0,0.0001462,2]
[351769995,1738782643201,-500.0,0.0001462,2]
[351769997,1738782643211,-1007.14,0.0001462,2]
[351769999,1738782643220,-500.0,0.0001462,2]
[351770001,1738782643230,-533.81,0.0001462,2]
[351770003,1738782643239,-500.0,0.0001462,2]
[351770005,1738782643249,-1389.66,0.0001462,2]
[351770007,1738782643259,-500.0,0.0001462,2]
[351770009,1738782643273,-500.0,0.0001462,2]
[351770011,1738782643283,-500.0,0.0001462,2]
[351770013,1738782643293,-539.05970564,0.0001462,2]
[351770015,1738782643304,-500.0,0.0001462,2]
[351770017,1738782643315,-500.0,0.0001462,2]
[351770019,1738782643326,-2576.63,0.0001462,2]
[351770021,1738782643336,-500.0,0.0001462,2]
[351770023,1738782643346,-500.0,0.0001462,2]
[351770025,1738782643356,-1014.65,0.0001462,2]
[351770027,1738782643366,-641.36,0.0001462,2]
[351770029,1738782643376,-500.0,0.0001462,2]
[351770031,1738782643386,-500.0,0.0001462,2]
[351770033,1738782643396,-702.61,0.0001462,2]
[351770035,1738782643406,-1727.46,0.0001462,2]
[351770037,1738782643415,-501.60455373,0.0001462,2]
[351770039,1738782643424,-500.0,0.0001462,2]
[351770041,1738782643434,-500.0,0.0001462,2]
[351770043,1738782643443,-620.59697866,0.0001462,2]
[351770045,1738782643453,-1568.18,0.0001462,2]
[351770047,1738782643463,-500.0,0.0001462,2]
[351770049,1738782643473,-500.0,0.0001462,2]
[351770051,1738782643483,-500.0,0.0001462,2]
[351770053,1738782643493,-500.0,0.0001462,2]
[351770055,1738782643503,-500.0,0.0001462,2]
[351770057,1738782643519,-775.96,0.0001462,2]
[351770059,1738782643529,-500.0,0.0001462,2]
[351770061,1738782643539,-1677.13,0.0001462,2]
[351770063,1738782643548,-500.0,0.0001462,2]
[351770065,1738782643558,-879.06,0.0001462,2]
[351770067,1738782643568,-500.0,0.0001462,2]
[351770069,1738782643578,-1956.72,0.0001462,2]
[351770072,1738782643589,-500.0,0.0001462,2]
[351770075,1738782643599,-500.0,0.0001462,2]
[351770078,1738782643609,-1495.36,0.0001462,2]
[351770081,1738782643619,-705.83,0.0001462,2]
[351770084,1738782643630,-500.0,0.0001462,2]
[351770086,1738782643640,-534.65,0.0001462,2]
[351770089,1738782643649,-500.0,0.0001462,2]
[351770092,1738782643659,-329.93248114,0.0001462,2]
[351770095,1738782643668,-500.0,0.0001462,2]
[351770097,1738782643678,-500.0,0.0001462,2]
[351770099,1738782643688,-500.0,0.0001462,2]
[351770101,1738782643698,-617.64,0.0001462,2]
[351770103,1738782643708,-500.0,0.0001462,2]
[351770105,1738782643717,-1007.56,0.0001462,2]
[351770107,1738782643727,-500.0,0.0001462,2]
[351770109,1738782643743,-506.91672502,0.0001462,2]
[351770111,1738782643752,-1163.32,0.0001462,2]
[351770113,1738782643764,-500.0,0.0001462,2]
[351770115,1738782643774,-1926.31,0.0001462,2]
[351770117,1738782643783,-500.0,0.0001462,2]
[351770119,1738782643793,-2479.64,0.0001462,2]
[351770121,1738782643802,-500.0,0.0001462,2]
[351770123,1738782643813,-500.0,0.0001462,2]
[351770125,1738782643822,-500.0,0.0001462,2]
[351770127,1738782643832,-680.67,0.0001462,2]
[351770129,1738782643842,-685.07,0.0001462,2]
[351770131,1738782643852,-912.47,0.0001462,2]
[351770133,1738782643861,-768.15,0.0001462,2]
[351770135,1738782643871,-643.89,0.0001462,2]
[351770137,1738782643880,-500.0,0.0001462,2]
[351770139,1738782643890,-500.0,0.0001462,2]
[351770141,1738782643899,-1320.44,0.0001462,2]
[351770143,1738782643908,-500.0,0.0001462,2]
[351770145,1738782643918,-500.0,0.0001462,2]
[351770147,1738782643927,-500.0,0.0001462,2]
[351770149,1738782643937,-560.07,0.0001462,2]
[351770151,1738782643950,-500.0,0.0001462,2]
[351770153,1738782643960,-589.25,0.0001462,2]
[351770155,1738782643969,-4304.79,0.0001462,2]
[351770157,1738782643979,-500.0,0.0001462,2]
[351770159,1738782643988,-500.0,0.0001462,2]
[351770161,1738782643998,-2960.63,0.0001462,2]
[351770163,1738782644007,-500.0,0.0001462,2]
[351770164,1738782644018,-500.0,0.0001462,2]
[351770166,1738782644029,-500.0,0.0001462,2]
[351770168,1738782644039,-500.0,0.0001462,2]
[351770170,1738782644049,-500.0,0.0001462,2]
[351770172,1738782644058,-500.0,0.0001462,2]
[351770174,1738782644068,-839.23,0.0001462,2]
[351770176,1738782644078,-500.0,0.0001462,2]
[351770178,1738782644087,-500.0,0.0001462,2]
[351770180,1738782644097,-500.0,0.0001462,2]
[351770182,1738782644107,-500.0,0.0001462,2]
[351770184,1738782644116,-500.0,0.0001462,2]
[351770186,1738782644126,-500.0,0.0001462,2]
[351770188,1738782644135,-500.0,0.0001462,2]
[351770190,1738782644145,-500.0,0.0001462,2]
[351770204,1738782644263,-2770.74,0.0001462,2]
[351770207,1738782644286,-500.0,0.0001462,2]
[351770209,1738782644296,-500.0,0.0001462,2]
[351770211,1738782644306,-500.0,0.0001462,2]
[351770213,1738782644317,-522.31791912,0.0001462,2]
[351770215,1738782644327,-1056.21,0.0001462,2]
[351770217,1738782644336,-500.0,0.0001462,2]
[351770219,1738782644346,-726.98,0.0001462,2]
[351770221,1738782644355,-3867.41,0.0001462,2]
[351770223,1738782644364,-500.0,0.0001462,2]
[351770225,1738782644373,-536.76494534,0.0001462,2]
[351770227,1738782644382,-500.0,0.0001462,2]
[351770228,1738782644392,-201.9818426,0.0001462,2]
[351770230,1738782644402,-3094.25,0.0001462,2]
[351770232,1738782644411,-151.0,0.0001462,2]
[351770235,1738782644422,-695.53,0.0001462,2]
[351770237,1738782644431,-502.46518186,0.0001462,2]
[351770239,1738782644440,-500.0,0.0001462,2]
[351770241,1738782644449,-500.0,0.0001462,2]
[351770243,1738782644459,-625.74218619,0.0001462,2]
[351770245,1738782644468,-500.0,0.0001462,2]
[351770247,1738782644477,-500.0,0.0001462,2]
[351770249,1738782644487,-500.0,0.0001462,2]
[351770250,1738782644497,-902.89,0.0001462,2]
[351770253,1738782644506,-500.0,0.0001462,2]
[351770254,1738782644518,-500.0,0.0001462,2]
[351770257,1738782644527,-500.0,0.0001462,2]
[351770258,1738782644536,-713.65,0.0001462,2]
[351770260,1738782644546,-151.0,0.0001462,2]
[351770262,1738782644555,-500.0,0.0001462,2]
[351770264,1738782644564,-151.0,0.0001462,2]
[351770266,1738782644573,-500.0,0.0001462,2]
[351770268,1738782644583,-500.0,0.0001462,2]
[351770270,1738782644592,-501.98540406,0.0001462,2]
[351770272,1738782644601,-500.0,0.0001462,2]
[351770274,1738782644611,-500.0,0.0001462,2]
[351770276,1738782644621,-500.0,0.0001462,2]
[351770278,1738782644630,-500.0,0.0001462,2]
[351770280,1738782644640,-560.15,0.0001462,2]
[351770282,1738782644649,-599.77,0.0001462,2]
[351770284,1738782644658,-500.0,0.0001462,2]
[351770286,1738782644667,-1273.55,0.0001462,2]
[351770288,1738782644676,-232.44990168,0.0001462,2]
[351770290,1738782644686,-509.66229662,0.0001462,2]
[351770292,1738782644695,-528.47,0.0001462,2]
[351770294,1738782644704,-906.15,0.0001462,2]
[351770296,1738782644713,-500.0,0.0001462,2]
[351770297,1738782644723,-500.0,0.0001462,2]
[351770299,1738782644732,-652.99,0.0001462,2]
[351770301,1738782644742,-8445.46,0.0001462,2]
[351770303,1738782644751,-564.60401182,0.0001462,2]
[351770305,1738782644761,-1501.63,0.0001462,2]
[351770307,1738782644772,-506.24548495,0.0001462,2]
[351770309,1738782644782,-151.0,0.0001462,2]
[351770311,1738782644791,-500.0,0.0001462,2]
[351770313,1738782644801,-1677.82,0.0001462,2]
[351770315,1738782644811,-500.0,0.0001462,2]
[351770317,1738782644820,-502.3482059,0.0001462,2]
[351770319,1738782644829,-635.5,0.0001462,2]
[351770321,1738782644839,-500.0,0.0001462,2]
[351770323,1738782644848,-2896.01,0.0001462,2]
[351770325,1738782644857,-500.0,0.0001462,2]
[351770327,1738782644867,-511.78,0.0001462,2]
[351770329,1738782644877,-500.0,0.0001462,2]
[351770331,1738782644887,-500.0,0.0001462,2]
[351770333,1738782644896,-320.62455143,0.0001462,2]
[351770335,1738782644905,-500.0,0.0001462,2]
[351770337,1738782644915,-1718.43,0.0001462,2]
[351770338,1738782644924,-500.0,0.0001462,2]
[351770339,1738782644935,-743.26,0.0001462,2]
[351770340,1738782644946,-500.0,0.0001462,2]
[351770341,1738782644956,-500.0,0.0001462,2]
[351770342,1738782644966,-151.0,0.0001462,2]
[351770343,1738782644976,-515.51,0.0001462,2]
[351770344,1738782644987,-500.0,0.0001462,2]
[351770345,1738782644997,-1151.02,0.0001462,2]
[351770346,1738782645007,-1362.74,0.0001462,2]
[351770347,1738782645020,-500.0,0.0001462,2]
[351770348,1738782645031,-500.0,0.0001462,2]
[351770349,1738782645041,-1686.85,0.0001462,2]
[351770350,1738782645051,-500.0,0.0001462,2]
[351770351,1738782645061,-501.15220094,0.0001462,2]
[351770352,1738782645072,-647.52,0.0001462,2]
[351770353,1738782645082,-500.0,0.0001462,2]
[351770354,1738782645092,-505.38848824,0.0001462,2]
[351770355,1738782645101,-500.0,0.0001462,2]
[351770356,1738782645111,-562.71,0.0001462,2]
[351770357,1738782645121,-500.0,0.0001462,2]
[351770358,1738782645131,-500.0,0.0001462,2]
[351770359,1738782645140,-500.0,0.0001462,2]
[351770360,1738782645150,-8186.23,0.0001462,2]
[351770361,1738782645160,-500.0,0.0001462,2]
[351770363,1738782645170,-500.0,0.0001462,2]
[351770365,1738782645179,-500.0,0.0001462,2]
[351770367,1738782645188,-987.81,0.0001462,2]
[351770368,1738782645197,-826.85,0.0001462,2]
[351770370,1738782645207,-500.0,0.0001462,2]
[351770372,1738782645217,-500.0,0.0001462,2]
[351770373,1738782645227,-1499.9,0.0001462,2]
[351770374,1738782645237,-500.0,0.0001462,2]
[351770375,1738782645246,-500.0,0.0001462,2]
[351770376,1738782645255,-500.0,0.0001462,2]
[351770377,1738782645266,-500.0,0.0001462,2]
[351770378,1738782645276,-500.0,0.0001462,2]
[351770379,1738782645285,-500.0,0.0001462,2]
[351770380,1738782645295,-500.0,0.0001462,2]
[351770381,1738782645304,-500.0,0.0001462,2]
[351770382,1738782645314,-508.45059046,0.0001462,2]
[351770383,1738782645323,-683.63,0.0001462,2]
[351770384,1738782645334,-500.0,0.0001462,2]
[351770385,1738782645345,-500.0,0.0001462,2]
[351770386,1738782645356,-500.0,0.0001462,2]
[351770387,1738782645368,-500.0,0.0001462,2]
[351770388,1738782645378,-500.0,0.0001462,2]
[351770389,1738782645389,-500.0,0.0001462,2]
[351770390,1738782645400,-535.55275327,0.0001462,2]
[351770392,1738782645410,-2953.29,0.0001462,2]
[351770394,1738782645419,-500.0,0.0001462,2]
[351770396,1738782645428,-500.0,0.0001462,2]
[351770398,1738782645438,-500.0,0.0001462,2]
[351770400,1738782645448,-500.0,0.0001462,2]
[351770402,1738782645458,-559.99,0.0001462,2]
[351770404,1738782645467,-500.0,0.0001462,2]
[351770406,1738782645477,-629.12,0.0001462,2]
[351770408,1738782645486,-523.90169399,0.0001462,2]
[351770410,1738782645496,-365.384098,0.00014621,2]
[351770412,1738782645505,-365.384098,0.00014621,2]
[351770414,1738782645515,-365.384098,0.00014621,2]
[351770416,1738782645524,-365.384098,0.00014621,2]
[351770418,1738782645535,-151.0,0.00014621,2]
[351770420,1738782645545,-37791.57,0.00014621,2]
[351770422,1738782645554,-122573.71,0.00014621,2]
[351770424,1738782645563,-5156.06,0.00014621,2]
[351770426,1738782645573,-5889.5,0.00014621,2]
[351770428,1738782645583,-3152.05,0.00014621,2]
[351770430,1738782645591,-663.3,0.00014621,2]
[351770432,1738782645601,-500.0,0.00014621,2]
[351770434,1738782645610,-2589.05,0.00014621,2]
[351770436,1738782645620,-761.99,0.00014621,2]
[351770438,1738782645629,-500.0,0.00014621,2]
[351770440,1738782645639,-581.56,0.00014621,2]
[351770442,1738782645648,-265.34416505,0.00014621,2]
[351770444,1738782645657,-35857.39,0.00014621,2]
[351770446,1738782645667,-151.0,0.00014621,2]
[351770448,1738782645676,-3085.46,0.00014621,2]
[351770450,1738782645685,-500.0,0.00014621,2]
[351770452,1738782645694,-500.0,0.00014622,2]
[351770454,1738782645704,-585.16,0.00014622,2]
[351770456,1738782645713,-500.0,0.00014622,2]
[351770458,1738782645722,-500.0,0.00014622,2]
[351770461,1738782645731,-500.0,0.00014622,2]
[351770463,1738782645740,-222.15928418,0.00014622,2]
[351770464,1738782645750,-547.34,0.00014622,2]
[351770467,1738782645759,-808.6,0.00014622,2]
[351770469,1738782645770,-608.43,0.00014622,2]
[351770471,1738782645779,-1839.59,0.00014622,2]
[351770474,1738782645789,-500.0,0.00014622,2]
[351770476,1738782645799,-500.0,0.00014622,2]
[351770478,1738782645808,-500.0,0.00014622,2]
[351770480,1738782645817,-912.41,0.00014622,2]
[351770482,1738782645829,-901.79,0.00014622,2]
[351770484,1738782645838,-584.16711782,0.00014622,2]
[351770486,1738782645847,-2459.8,0.00014622,2]
[351770489,1738782645857,-500.0,0.00014622,2]
[351770492,1738782645866,-341.55286585,0.00014622,2]
[351770495,1738782645884,-296.54244,0.00014622,2]
[351770497,1738782645897,-151.0,0.00014622,2]
[351770499,1738782645907,-500.0,0.00014622,2]
[351770501,1738782645916,-500.0,0.00014622,2]
[351770503,1738782645926,-702.1,0.00014622,2]
[351770505,1738782645936,-500.0,0.00014622,2]
[351770507,1738782645949,-1122.14,0.00014622,2]
[351770509,1738782645959,-500.0,0.00014622,2]
[351770511,1738782645969,-544.53,0.00014622,2]
[351770513,1738782645979,-500.0,0.00014622,2]
[351770515,1738782645989,-151.0,0.00014622,2]
[351770517,1738782645999,-1299.08,0.00014622,2]
[351770519,1738782646009,-500.0,0.00014622,2]
[351770521,1738782646022,-770.26,0.00014622,2]
[351770523,1738782646033,-4098.47,0.00014622,2]
[351770525,1738782646043,-500.0,0.00014622,2]
[351770527,1738782646052,-500.0,0.00014622,2]
[351770529,1738782646062,-4277.96,0.00014622,2]
[351770531,1738782646072,-151.0,0.00014622,2]
[351770533,1738782646082,-705.82,0.00014622,2]
[351770535,1738782646092,-151.0,0.00014622,2]
[351770537,1738782646102,-209.709451,0.00014622,2]
[351770539,1738782646112,-500.0,0.00014622,2]
[351770541,1738782646121,-500.0,0.00014622,2]
[351770543,1738782646131,-860.21,0.00014622,2]
[351770545,1738782646142,-1527.84,0.00014622,2]
[351770548,1738782646153,-151.0,0.00014622,2]
[351770550,1738782646163,-1122.99,0.00014622,2]
[351770552,1738782646173,-500.0,0.00014622,2]
[351770554,1738782646183,-980.72,0.00014622,2]
[351770556,1738782646193,-151.0,0.00014622,2]
[351770558,1738782646202,-4162.59,0.00014622,2]
[351770560,1738782646212,-500.0,0.00014622,2]
[351770562,1738782646221,-500.0,0.00014622,2]
[351770564,1738782646231,-500.0,0.00014622,2]
[351770566,1738782646241,-1571.52,0.00014622,2]
[351770568,1738782646251,-500.0,0.00014622,2]
[351770570,1738782646260,-1166.48,0.00014622,2]
[351770572,1738782646272,-500.0,0.00014622,2]
[351770574,1738782646282,-500.0,0.00014622,2]
[351770576,1738782646292,-500.0,0.00014622,2]
[351770578,1738782646301,-500.0,0.00014622,2]
[351770580,1738782646311,-535.76,0.00014622,2]
[351770582,1738782646322,-708.31,0.00014622,2]
[351770584,1738782646332,-500.0,0.00014622,2]
[351770586,1738782646343,-500.0,0.00014622,2]
[351770588,1738782646355,-717.77,0.00014622,2]
[351770590,1738782646364,-2044.72,0.00014622,2]
[351770592,1738782646374,-580.57,0.00014622,2]
[351770595,1738782646384,-501.0601315,0.00014622,2]
[351770621,1738782646549,-500.0,0.00014622,2]
[351770625,1738782646572,-561.34,0.00014622,2]
[351770628,1738782646582,-965.95,0.00014622,2]
[351770630,1738782646592,-500.0,0.00014623,2]
[351770632,1738782646601,-500.0,0.00014623,2]
[351770634,1738782646611,-500.0,0.00014623,2]
[351770636,1738782646620,-500.0,0.00014623,2]
[351770638,1738782646630,-500.0,0.00014623,2]
[351770640,1738782646639,-500.0,0.00014623,2]
[351770642,1738782646649,-500.0,0.00014623,2]
[351770644,1738782646659,-500.0,0.00014623,2]
[351770646,1738782646668,-500.0,0.00014623,2]
[351770648,1738782646677,-500.0,0.00014623,2]
[351770650,1738782646687,-500.0,0.00014623,2]
[351770652,1738782646700,-1140.51,0.00014623,2]